bitfinex/quotes_BTCUSD_20250119
["timestamp","ask_amount","ask_price","bid_price","bid_amount"]
[1737274232532,1.02569504,104870.0,104860.0,0.0957928]
[1737274234049,0.73798695,104870.0,104860.0,0.0957928]
[1737274234373,0.73798695,104870.0,104850.0,0.55706893]
[1737274234639,0.1594853,104860.0,104850.0,0.27096693]
[1737274234987,0.16274657,104860.0,104850.0,0.27096693]
[1737274235432,0.16274657,104860.0,104850.0,0.27395009]
[1737274235847,0.16274657,104860.0,104850.0,0.27991641]
[1737274236341,0.00326127,104860.0,104850.0,0.27991641]
[1737274236544,0.25917531,104860.0,104850.0,0.520884]
[1737274236683,0.25917531,104860.0,104850.0,0.55068731]
[1737274237288,0.25917531,104860.0,104850.0,0.49998761]
[1737274237919,0.51524228,104860.0,104850.0,0.4701843]
[1737274238836,0.21656036,104860.0,104850.0,0.4701843]
[1737274239487,0.21656036,104860.0,104850.0,0.53977533]
[1737274240441,0.21656036,104860.0,104850.0,0.56957864]
[1737274240660,0.21656036,104860.0,104850.0,0.59257864]
[1737274241602,0.08856511,104860.0,104850.0,0.58825554]
[1737274242704,0.00326127,104860.0,104850.0,0.58825554]
[1737274243268,0.00326127,104860.0,104850.0,0.58868354]
[1737274243701,0.38490816,104870.0,104860.0,0.095365]
[1737274243908,0.38490816,104870.0,104860.0,0.18150949]
[1737274244283,0.38490816,104870.0,104860.0,0.121265]
[1737274244514,0.38490816,104870.0,104860.0,0.15057502]
[1737274244709,0.38490816,104870.0,104860.0,0.16608613]
[1737274244900,0.38490816,104870.0,104860.0,0.11087611]
[1737274245116,0.38490816,104870.0,104860.0,0.11863107]
[1737274245321,0.08625257,104870.0,104860.0,0.11863107]
[1737274246528,0.21424782,104870.0,104860.0,0.11863107]
[1737274246899,0.35189231,104870.0,104860.0,0.26863107]
[1737274247297,0.29164782,104870.0,104860.0,0.26863107]
[1737274247504,0.16365257,104870.0,104860.0,0.26863107]
[1737274247700,0.16365257,104870.0,104860.0,0.25311996]
[1737274247943,0.16365257,104870.0,104860.0,0.25431361]
[1737274248718,0.46233449,104870.0,104860.0,0.25431361]
[1737274249920,0.59005101,104870.0,104860.0,0.25431361]
[1737274252071,0.56987898,104870.0,104860.0,0.25431361]
[1737274252873,0.50963449,104870.0,104860.0,0.24834816]
[1737274253434,0.33897415,104870.0,104860.0,0.24834816]
[1737274254510,0.65327235,104870.0,104860.0,0.24834816]
[1737274255924,0.33897415,104870.0,104860.0,0.24834816]
[1737274256686,0.33897415,104870.0,104860.0,0.245365]
[1737274257257,0.59488819,104870.0,104860.0,0.245365]
[1737274258805,0.59488819,104870.0,104860.0,0.24834784]
[1737274260406,0.38156277,104870.0,104860.0,0.24834784]
[1737274261475,0.69587618,104870.0,104860.0,0.24834784]
[1737274262214,0.38156277,104870.0,104860.0,0.24834784]
[1737274265049,0.38156277,104870.0,104860.0,0.25431342]
[1737274265223,0.33853849,104870.0,104860.0,0.25431342]
[1737274265879,0.33853849,104870.0,104860.0,0.26385807]
[1737274266341,0.50885877,104870.0,104860.0,0.26385807]
[1737274267124,0.50885877,104870.0,104860.0,0.26863055]
[1737274267341,0.33853849,104870.0,104860.0,0.2590859]
[1737274268370,0.90882532,104870.0,104860.0,0.2590859]
[1737274269825,0.38156277,104870.0,104860.0,0.2590859]
[1737274273173,0.5945907,104870.0,104860.0,0.26863075]
[1737274273373,0.5945907,104870.0,104860.0,0.27459628]
[1737274274801,0.5945907,104870.0,104860.0,0.26863075]
[1737274275510,0.38156277,104870.0,104860.0,0.26863075]
[1737274282707,0.63640407,104870.0,104860.0,0.11863075]
[1737274282903,0.54104807,104870.0,104860.0,0.11863075]
[1737274283359,0.48080358,104870.0,104860.0,0.11863075]
[1737274283723,0.54104807,104870.0,104860.0,0.11863075]
[1737274284120,0.48080358,104870.0,104860.0,0.1090859]
[1737274284304,0.57303732,104870.0,104860.0,0.1090859]
[1737274284499,0.66839332,104870.0,104860.0,0.1090859]
[1737274284936,0.57303732,104870.0,104860.0,0.1090859]
[1737274286359,0.66839332,104870.0,104860.0,0.1090859]
[1737274287414,0.57303732,104870.0,104860.0,0.1090859]
[1737274287769,0.66839332,104870.0,104860.0,0.0137209]
[1737274288311,0.66839332,104870.0,104860.0,0.00775532]
[1737274289166,0.66839332,104870.0,104860.0,0.00298284]
[1737274289392,1.12692281,104870.0,104860.0,0.00298284]
[1737274289609,1.2768474,104870.0,104860.0,0.00298284]
[1737274290591,0.219665,104860.0,104850.0,0.0958]
[1737274290817,0.3791503,104860.0,104850.0,0.0958]
[1737274291229,0.3791503,104860.0,104850.0,0.0924261]
[1737274291738,0.66686189,104860.0,104850.0,0.10018274]
[1737274293011,0.66686189,104860.0,104850.0,0.09540942]
[1737274295646,0.66686189,104860.0,104850.0,0.0924261]
[1737274296815,0.67640895,104860.0,104850.0,0.0924261]
[1737274298836,0.58104395,104860.0,104850.0,0.0924261]
[1737274300006,0.67640895,104860.0,104850.0,0.0924261]
[1737274300500,0.67640895,104860.0,104850.0,0.0928541]
[1737274300693,0.67730776,104860.0,104850.0,0.0928541]
[1737274307626,0.67730776,104860.0,104850.0,0.000428]
[1737274309004,1.11719084,104860.0,104850.0,0.000428]
[1737274309362,0.1291,104850.0,104840.0,0.28606788]
[1737274309586,0.2885853,104850.0,104840.0,0.28606788]
[1737274309750,0.3839593,104850.0,104840.0,0.28606788]
[1737274309953,0.3839593,104850.0,104840.0,0.28905146]
[1737274310152,0.3839593,104850.0,104840.0,0.28879034]
[1737274310606,0.2885853,104850.0,104840.0,0.28879034]
[1737274311416,0.92670579,104850.0,104840.0,0.28879034]
[1737274311580,0.83133179,104850.0,104840.0,0.28879034]
[1737274311976,0.83133179,104850.0,104840.0,0.09802534]
[1737274311977,0.92670579,104850.0,104840.0,0.09802534]
[1737274312298,0.92670579,104850.0,104840.0,0.00298358]
[1737274312705,0.92670579,104850.0,104840.0,0.09836658]
[1737274313076,0.92670579,104850.0,104840.0,0.09879458]
[1737274313831,0.67129568,104850.0,104840.0,0.09879458]
[1737274314923,0.73154017,104850.0,104840.0,0.09879458]
[1737274315114,0.73702017,104850.0,104840.0,0.00341158]
[1737274315477,0.73702017,104850.0,104840.0,0.00317086]
[1737274315677,0.73702017,104850.0,104840.0,0.09855386]
[1737274315916,0.73702017,104850.0,104840.0,0.00317086]
[1737274317180,0.88956687,104850.0,104840.0,0.00317086]
[1737274317922,0.88956687,104850.0,104840.0,0.000428]
[1737274318698,0.46849886,104850.0,104840.0,0.000428]
[1737274318898,0.224483,104840.0,104830.0,0.09247936]
[1737274319150,0.2885853,104840.0,104830.0,0.09247936]
[1737274319849,0.083,104830.0,104820.0,0.4366122]
[1737274320052,0.18224081,104830.0,104820.0,0.4366122]
[1737274321208,0.18224081,104830.0,104820.0,0.44272927]
[1737274321814,0.18224081,104830.0,104820.0,0.44750372]
[1737274322024,0.39497032,104830.0,104820.0,0.44750372]
[1737274322225,0.45521481,104830.0,104820.0,0.44750372]
[1737274322927,0.50071481,104830.0,104820.0,0.44750372]
[1737274323695,0.50071481,104830.0,104820.0,0.43676121]
[1737274327114,0.69028768,104830.0,104820.0,0.43676121]
[1737274327335,0.38282134,104830.0,104820.0,0.52631572]
[1737274327504,0.38282134,104830.0,104820.0,0.46607123]
[1737274328000,0.59545884,104830.0,104820.0,0.43676121]
[1737274328207,0.59545884,104830.0,104820.0,0.45227681]
[1737274328400,0.83054414,104830.0,104820.0,0.30227681]
[1737274328720,0.83054414,104830.0,104820.0,0.3100348]
[1737274329132,0.68524465,104830.0,104820.0,0.30048674]
[1737274330329,0.55766215,104830.0,104820.0,0.30048674]
[1737274330601,0.48206215,104830.0,104820.0,0.29571259]
[1737274331829,0.48206215,104830.0,104820.0,0.30526089]
[1737274332441,0.60970343,104830.0,104820.0,0.30526089]
[1737274333368,0.51046262,104830.0,104820.0,0.30526089]
[1737274333878,0.51046262,104830.0,104820.0,0.31003504]
[1737274335019,0.69700338,104830.0,104820.0,0.31003504]
[1737274335237,0.69700338,104830.0,104820.0,0.46003504]
[1737274336124,0.69790239,104830.0,104820.0,0.46003504]
[1737274336283,0.38372035,104830.0,104820.0,0.52027953]
[1737274337371,0.59661508,104830.0,104820.0,0.46600249]
[1737274337981,0.59661508,104830.0,104820.0,0.43360249]
[1737274341837,0.45908557,104830.0,104820.0,0.43360249]
[1737274342973,0.50748557,104830.0,104820.0,0.43360249]
[1737274343176,0.50732035,104830.0,104820.0,0.43360249]
[1737274344155,0.92100405,104830.0,104820.0,0.43360249]
[1737274344363,0.98124854,104830.0,104820.0,0.43360249]
[1737274344759,0.92100405,104830.0,104820.0,0.43360249]
[1737274345334,0.60656116,104830.0,104820.0,0.43360249]
[1737274345540,0.66680565,104830.0,104820.0,0.43360249]
[1737274346661,0.49671382,104830.0,104820.0,0.43360249]
[1737274347079,0.43646933,104830.0,104820.0,0.43360249]
[1737274347437,0.43646933,104830.0,104820.0,0.43403069]
[1737274348143,0.50600526,104830.0,104820.0,0.43403069]
[1737274349155,0.76127157,104830.0,104820.0,0.43403069]
[1737274350755,0.75198013,104830.0,104820.0,0.43403069]
[1737274351224,0.69173564,104830.0,104820.0,0.43403069]
[1737274351577,0.47900613,104830.0,104820.0,0.43403069]
[1737274352210,0.49850284,104830.0,104820.0,0.43403069]
[1737274354492,0.49850284,104830.0,104820.0,0.42806324]
[1737274355399,0.49850284,104830.0,104820.0,0.45106324]
[1737274357303,0.49850284,104830.0,104820.0,0.43606324]
[1737274357889,0.55874733,104830.0,104820.0,0.43606324]
[1737274358312,0.49850284,104830.0,104820.0,0.43606324]
[1737274358482,0.49850284,104830.0,104820.0,0.442031]
[1737274358692,0.55874733,104830.0,104820.0,0.442031]
[1737274359235,0.49850284,104830.0,104820.0,0.292031]
[1737274359653,0.49850284,104830.0,104820.0,0.442031]
[1737274363078,0.49850284,104830.0,104820.0,0.292031]
[1737274363268,0.49850284,104830.0,104820.0,0.442031]
[1737274363962,0.55874733,104830.0,104820.0,0.442031]
[1737274364163,0.49850284,104830.0,104820.0,0.442031]
[1737274365558,0.49850284,104830.0,104820.0,0.419031]
[1737274366322,0.55874733,104830.0,104820.0,0.419031]
[1737274366545,0.55874733,104830.0,104820.0,0.269031]
[1737274366750,0.55874733,104830.0,104820.0,0.419031]
[1737274367423,0.65413933,104830.0,104820.0,0.419031]
[1737274367576,0.59065562,104830.0,104820.0,0.419031]
[1737274368235,0.68604762,104830.0,104820.0,0.419031]
[1737274368452,0.59065562,104830.0,104820.0,0.419031]
[1737274369517,0.59065562,104830.0,104820.0,0.40351494]
[1737274371298,0.53041113,104830.0,104820.0,0.40351494]
[1737274371506,0.59065562,104830.0,104820.0,0.40351494]
[1737274372326,0.59065562,104830.0,104820.0,0.25969674]
[1737274372532,0.68604762,104830.0,104820.0,0.25969674]
[1737274373610,0.68604762,104830.0,104820.0,0.16430274]
[1737274374346,0.39887302,104830.0,104820.0,0.16430274]
[1737274376295,0.39887302,104830.0,104820.0,0.01430274]
[1737274376478,0.39887302,104830.0,104820.0,0.00952859]
[1737274376957,0.68647973,104830.0,104820.0,0.00952859]
[1737274378980,0.68647973,104830.0,104820.0,0.00356105]
[1737274379903,0.39887302,104830.0,104820.0,0.00356105]
[1737274380103,0.39887302,104830.0,104820.0,0.00057721]
[1737274380275,0.78715402,104830.0,104810.0,0.28258479]
[1737274380507,0.2413853,104820.0,104810.0,0.4326347]
[1737274380888,0.3367863,104820.0,104810.0,0.24545791]
[1737274381031,0.2413853,104820.0,104810.0,0.24545791]
[1737274381242,0.3367863,104820.0,104810.0,0.24545791]
[1737274381445,0.3367863,104820.0,104810.0,0.24844235]
[1737274381687,0.3846863,104820.0,104810.0,0.24844235]
[1737274381891,0.3846863,104820.0,104810.0,0.15900323]
[1737274382096,0.3846863,104820.0,104810.0,0.25441323]
[1737274382497,0.6402782,104820.0,104810.0,0.25441323]
[1737274383304,0.6402782,104820.0,104810.0,0.25918822]
[1737274383504,0.92781909,104820.0,104810.0,0.25918822]
[1737274384393,0.6402782,104820.0,104810.0,0.25918822]
[1737274384745,0.2555919,104820.0,104810.0,0.28218822]
[1737274384948,0.2555919,104820.0,104810.0,0.36833271]
[1737274385175,0.2555919,104820.0,104810.0,0.30808822]
[1737274385582,0.57006703,104820.0,104810.0,0.30808822]
[1737274386265,0.57006703,104820.0,104810.0,0.36833271]
[1737274386463,0.57006703,104820.0,104810.0,0.37788159]
[1737274386671,0.69785043,104820.0,104810.0,0.37788159]
[1737274387105,0.69785043,104820.0,104810.0,0.38932289]
[1737274387627,0.69785043,104820.0,104810.0,0.3290784]
[1737274387829,0.51118211,104820.0,104810.0,0.3290784]
[1737274388375,0.51118211,104820.0,104810.0,0.3031784]
[1737274390074,0.51118211,104820.0,104810.0,0.31032929]
[1737274390272,0.3833753,104820.0,104810.0,0.31032929]
[1737274392639,0.3833753,104820.0,104810.0,0.31075729]
[1737274393247,0.69792496,104820.0,104810.0,0.31075729]
[1737274393441,0.77982496,104820.0,104810.0,0.31075729]
[1737274394458,1.08261126,104820.0,104810.0,0.19234729]
[1737274394711,1.08261126,104820.0,104810.0,0.18090599]
[1737274394914,1.08261126,104820.0,104810.0,0.27631599]
[1737274395103,0.98721026,104820.0,104810.0,0.27631599]
[1737274395305,1.02236677,104820.0,104810.0,0.26676711]
[1737274395608,0.6402782,104820.0,104810.0,0.26676711]
[1737274395943,0.6402782,104820.0,104810.0,0.25961622]
[1737274398639,0.6402782,104820.0,104810.0,0.10961622]
[1737274398837,0.70052269,104820.0,104810.0,0.01420622]
[1737274399057,0.70604269,104820.0,104810.0,0.01420622]
[1737274399259,0.6457982,104820.0,104810.0,0.01420622]
[1737274399478,0.70604269,104820.0,104810.0,0.01420622]
[1737274400065,0.73799168,104820.0,104810.0,0.01370723]
[1737274400270,0.73799168,104820.0,104810.0,0.00773835]
[1737274401265,0.73799168,104820.0,104810.0,0.00296336]
[1737274402440,0.89001237,104820.0,104810.0,0.00296336]
[1737274402665,0.90940605,104820.0,104810.0,0.00296336]
[1737274402839,0.0751,104790.0,104780.0,0.2876202]
[1737274403044,0.07514987,104790.0,104780.0,0.2876202]
[1737274403261,0.07514987,104790.0,104780.0,0.4376202]
[1737274403752,0.07514987,104790.0,104780.0,0.45314198]
[1737274404291,0.13539436,104790.0,104780.0,0.45660065]
[1737274404596,0.07514987,104790.0,104780.0,0.45660065]
[1737274404991,0.58564816,104790.0,104780.0,0.45660065]
[1737274405232,0.58564816,104790.0,104780.0,0.44350065]
[1737274405840,0.58564816,104790.0,104780.0,0.43394878]
[1737274406475,0.58564816,104790.0,104780.0,0.42917291]
[1737274406650,0.64589265,104790.0,104780.0,0.42917291]
[1737274407285,0.58564816,104790.0,104780.0,0.43394889]
[1737274408259,0.64589265,104790.0,104780.0,0.43394889]
[1737274408872,0.73091176,104790.0,104780.0,0.43394889]
[1737274410148,0.78051176,104790.0,104780.0,0.43394889]
[1737274411962,0.78051176,104790.0,104780.0,0.42917291]
[1737274412122,0.78051176,104790.0,104780.0,0.423203]
[1737274412330,0.87975257,104790.0,104780.0,0.423203]
[1737274413016,0.87975257,104790.0,104780.0,0.273203]
[1737274413437,0.97518057,104790.0,104780.0,0.095438]
[1737274413834,0.87975257,104790.0,104780.0,0.095438]
[1737274414036,0.97518057,104790.0,104780.0,0.095438]
[1737274414242,0.89016146,104790.0,104780.0,0.095438]
[1737274414466,0.0805,104780.0,104770.0,0.436322]
[1737274414665,0.2399853,104780.0,104770.0,0.436322]
[1737274415096,0.3819233,104780.0,104770.0,0.4422923]
[1737274415301,0.3819233,104780.0,104770.0,0.01373169]
[1737274415650,0.76465093,104780.0,104770.0,0.01373169]
[1737274415892,0.76465093,104780.0,104770.0,0.10917869]
[1737274416278,0.66921293,104780.0,104770.0,0.10917869]
[1737274416678,0.66921293,104780.0,104770.0,0.10320839]
[1737274416895,0.60896844,104780.0,104770.0,0.095447]
[1737274417121,0.66921293,104780.0,104770.0,0.095447]
[1737274417551,0.49919292,104780.0,104770.0,0.095447]
[1737274417775,0.33970762,104780.0,104770.0,0.095447]
[1737274417982,0.21270762,104780.0,104770.0,0.095447]
[1737274418183,0.21270762,104780.0,104770.0,0.245447]
[1737274418619,0.73634601,104790.0,104770.0,0.15]
[1737274418816,0.83558682,104790.0,104780.0,0.095438]
[1737274419402,0.85704641,104790.0,104780.0,0.095438]
[1737274419916,0.64433879,104790.0,104780.0,0.095438]
[1737274420103,0.69083879,104790.0,104780.0,0.095438]
[1737274420972,0.81866979,104790.0,104780.0,0.095438]
[1737274422875,0.90352948,104790.0,104780.0,0.095438]
[1737274424083,0.99895748,104790.0,104780.0,0.095438]
[1737274425472,0.59558459,104790.0,104780.0,0.095438]
[1737274425883,0.67728867,104790.0,104780.0,0.095438]
[1737274426065,0.80568867,104790.0,104780.0,0.09842322]
[1737274426411,0.80568867,104790.0,104780.0,0.12142322]
[1737274426601,0.80568867,104790.0,104780.0,0.12739322]
[1737274427005,0.29591286,104790.0,104780.0,0.12739322]
[1737274427370,0.29591286,104790.0,104780.0,0.13216921]
[1737274427922,0.29591286,104790.0,104780.0,0.13259741]
[1737274430342,0.4232278,104790.0,104780.0,0.13259741]
[1737274430760,0.52246861,104790.0,104780.0,0.13259741]
[1737274432713,0.52246861,104790.0,104780.0,0.10959741]
[1737274433192,0.61789661,104790.0,104780.0,0.10959741]
[1737274433414,0.52246861,104790.0,104780.0,0.10959741]
[1737274433812,0.90492948,104790.0,104780.0,0.10959741]
[1737274434210,0.90492948,104790.0,104780.0,0.10362741]
[1737274434728,0.82006979,104790.0,104780.0,0.10362741]
[1737274434927,0.73836571,104790.0,104780.0,0.10362741]
[1737274435443,0.6391249,104790.0,104780.0,0.12662741]
[1737274435638,0.5107249,104790.0,104780.0,0.12662741]
[1737274436595,0.5107249,104790.0,104780.0,0.13259742]
[1737274437243,0.38294543,104790.0,104780.0,0.13259742]
[1737274437689,0.38294543,104790.0,104780.0,0.14214941]
[1737274438334,0.59565305,104790.0,104780.0,0.14214941]
[1737274439467,0.65596619,104790.0,104780.0,0.14214941]
[1737274441163,0.57103804,104790.0,104780.0,0.14214941]
[1737274443432,0.4437231,104790.0,104780.0,0.14214941]
[1737274444670,0.58816134,104790.0,104780.0,0.12662741]
[1737274445009,0.58816134,104790.0,104780.0,0.14214942]
[1737274445208,0.5278482,104790.0,104780.0,0.14214942]
[1737274445481,0.58761798,104790.0,104780.0,0.14214942]
[1737274445866,0.84286713,104790.0,104780.0,0.14214942]
[1737274446069,0.84286713,104790.0,104780.0,0.12662741]
[1737274446362,0.84286713,104790.0,104780.0,0.13259756]
[1737274446570,0.91816713,104790.0,104780.0,0.13259756]
[1737274446795,0.91816713,104790.0,104780.0,0.13856766]
[1737274447154,0.39126802,104790.0,104780.0,0.13856766]
[1737274448028,0.39126802,104790.0,104780.0,0.1481199]
[1737274451017,0.53900883,104790.0,104780.0,0.1251199]
[1737274451226,0.63443683,104790.0,104780.0,0.1251199]
[1737274451413,0.69474997,104790.0,104780.0,0.02012966]
[1737274451621,0.63443683,104790.0,104780.0,0.02012966]
[1737274452330,0.69474997,104790.0,104780.0,0.02012966]
[1737274452513,0.72665611,104790.0,104780.0,0.02012966]
[1737274455125,0.72665611,104790.0,104780.0,0.01415951]
[1737274455388,0.72665611,104790.0,104780.0,0.00818941]
[1737274456911,0.87804785,104790.0,104780.0,0.00818941]
[1737274457111,0.87804785,104790.0,104780.0,0.0004282]
[1737274457396,0.219238,104780.0,104770.0,0.08628149]
[1737274457591,0.37879195,104780.0,104770.0,0.08628149]
[1737274458650,0.37879195,104780.0,104770.0,0.09404397]
[1737274459592,0.92135858,104780.0,104770.0,0.09404397]
[1737274460415,0.82592058,104780.0,104770.0,0.09404397]
[1737274460614,0.82592058,104780.0,104770.0,0.08926706]
[1737274460818,0.53867942,104780.0,104770.0,0.08926706]
[1737274461756,0.63411742,104780.0,104770.0,0.08926706]
[1737274462110,0.53867942,104780.0,104770.0,0.08926706]
[1737274462751,0.53867942,104780.0,104770.0,0.08969526]
[1737274463332,0.55816665,104780.0,104770.0,0.08969526]
[1737274464533,0.49785351,104780.0,104770.0,0.08969526]
[1737274464740,0.55816665,104780.0,104770.0,0.08969526]
[1737274467063,0.65360465,104780.0,104770.0,0.08969526]
[1737274467273,0.49785351,104780.0,104770.0,0.08969526]
[1737274467472,0.65360465,104780.0,104770.0,0.08969526]
[1737274468415,0.55816665,104780.0,104770.0,0.08969526]
[1737274474385,0.65360465,104780.0,104770.0,0.00341377]
[1737274475187,0.65374513,104780.0,104770.0,0.00341377]
[1737274476767,1.12420785,104780.0,104770.0,0.00341377]
[1737274477939,0.68566082,104780.0,104770.0,0.00341377]
[1737274478950,0.78566082,104780.0,104770.0,0.00341377]
[1737274479172,0.78566082,104780.0,104770.0,0.0004282]
[1737274479413,1.22420785,104780.0,104770.0,0.0004282]
[1737274479598,1.10116659,104780.0,104760.0,0.09220906]
[1737274479801,0.29065395,104770.0,104760.0,0.09220906]
[1737274480274,0.0775,104760.0,104750.0,0.44636169]
[1737274480475,0.23705395,104760.0,104750.0,0.44636169]
[1737274481903,0.61982215,104760.0,104750.0,0.44636169]
[1737274482473,0.61982215,104760.0,104750.0,0.44277873]
[1737274482684,0.61982215,104760.0,104750.0,0.3005421]
[1737274482847,0.44970295,104760.0,104750.0,0.3005421]
[1737274483263,0.38938981,104760.0,104750.0,0.3005421]
[1737274483442,0.44970295,104760.0,104750.0,0.3005421]
[1737274484030,0.49940295,104760.0,104750.0,0.3005421]
[1737274486678,0.66954005,104760.0,104750.0,0.3005421]
[1737274487648,0.66954005,104760.0,104750.0,0.3235421]
[1737274489954,0.49940295,104760.0,104750.0,0.3235421]
[1737274494425,0.75458176,104760.0,104750.0,0.3235421]
[1737274495290,0.69426862,104760.0,104750.0,0.3235421]
[1737274495711,0.75458176,104760.0,104750.0,0.3235421]
[1737274496995,0.54193276,104760.0,104750.0,0.3235421]
[1737274497175,0.48161962,104760.0,104750.0,0.3235421]
[1737274497523,0.54193276,104760.0,104750.0,0.3235421]
[1737274498786,0.54283198,104760.0,104750.0,0.3235421]
[1737274499333,0.48251884,104760.0,104750.0,0.3235421]
[1737274500448,0.48251884,104760.0,104750.0,0.32951396]
[1737274500928,0.54283198,104760.0,104750.0,0.32951396]
[1737274502984,0.54283198,104760.0,104750.0,0.31577873]
[1737274503385,0.54283198,104760.0,104750.0,0.32951401]
[1737274504388,0.48251884,104760.0,104750.0,0.32951401]
[1737274504768,0.54283198,104760.0,104750.0,0.33906902]
[1737274505499,0.54283198,104760.0,104750.0,0.54938216]
[1737274505500,0.25607803,104760.0,104750.0,0.54938216]
[1737274505702,0.25607803,104760.0,104750.0,0.57681227]
[1737274505908,0.25607803,104760.0,104750.0,0.52143015]
[1737274506084,0.25607803,104760.0,104750.0,0.49400004]
[1737274506844,0.21385544,104760.0,104750.0,0.49400004]
[1737274507957,0.61004739,104760.0,104750.0,0.34400004]
[1737274508400,0.7561882,104760.0,104750.0,0.33906902]
[1737274508934,0.54323198,104760.0,104750.0,0.33906902]
[1737274509615,0.54323198,104760.0,104750.0,0.32951401]
[1737274511059,0.69900112,104760.0,104750.0,0.04313501]
[1737274511257,0.69900112,104760.0,104750.0,0.02013501]
[1737274511599,0.69900112,104760.0,104750.0,0.01416315]
[1737274512300,0.69900112,104760.0,104750.0,0.00819132]
[1737274512301,0.89824193,104760.0,104750.0,0.00819132]
[1737274512582,0.94892571,104760.0,104750.0,0.00819132]
[1737274512735,0.98098806,104760.0,104750.0,0.00819132]
[1737274513341,0.98098806,104760.0,104750.0,0.00341383]
[1737274513541,0.88098806,104760.0,104750.0,0.00341383]
[1737274514176,1.03229393,104760.0,104750.0,0.00341383]
[1737274514366,1.13153474,104760.0,104750.0,0.00341383]
[1737274514577,0.1255,104740.0,104730.0,0.310863]
[1737274514803,0.28505395,104740.0,104730.0,0.310863]
[1737274514954,0.28505395,104740.0,104730.0,0.31683602]
[1737274515382,0.30652762,104740.0,104730.0,0.31683602]
[1737274515781,0.30652762,104740.0,104730.0,0.31733586]
[1737274517016,0.56192093,104740.0,104730.0,0.32211432]
[1737274517420,0.56192093,104740.0,104730.0,0.3161413]
[1737274518391,0.48013412,104740.0,104730.0,0.3161413]
[1737274519569,0.48013412,104740.0,104730.0,0.32211418]
[1737274521138,0.46817546,104740.0,104730.0,0.32211418]
[1737274521354,1.19838829,104770.0,104730.0,0.32211418]
[1737274521554,0.48142295,104770.0,104760.0,0.60024281]
[1737274521761,0.48142295,104770.0,104760.0,0.69948362]
[1737274521961,0.48142295,104770.0,104760.0,0.518456]
[1737274522801,0.00089922,104780.0,104760.0,0.4]
[1737274522951,0.10014003,104780.0,104770.0,0.095447]
[1737274523589,0.10014003,104780.0,104770.0,0.118447]
[1737274524201,0.18234003,104780.0,104770.0,0.11894684]
[1737274528089,0.18234003,104780.0,104770.0,0.09594684]
[1737274528328,0.35956484,104780.0,104770.0,0.00049984]
[1737274529971,0.40946484,104780.0,104770.0,0.00049984]
[1737274531382,0.55946484,104780.0,104770.0,0.00049984]
[1737274532666,0.64125165,104780.0,104770.0,0.00049984]
[1737274532973,0.8637191,104780.0,104770.0,0.00049984]
[1737274533598,0.30705181,104750.0,104730.0,0.478824]
[1737274533766,0.30705181,104750.0,104740.0,0.095474]
[1737274533767,0.1298,104750.0,104740.0,0.095474]
[1737274533966,0.22904081,104750.0,104740.0,0.095474]
[1737274535060,0.09924081,104750.0,104740.0,0.118474]
[1737274536179,0.18102762,104750.0,104740.0,0.118474]
[1737274536516,0.18102762,104750.0,104740.0,0.1214602]
[1737274540079,0.15279671,104750.0,104740.0,0.1214602]
[1737274540867,0.15279671,104750.0,104740.0,0.0984602]
[1737274544178,0.32946171,104750.0,104740.0,0.0029862]
[1737274544377,0.37816171,104750.0,104740.0,0.0029862]
[1737274544905,0.76002871,104750.0,104730.0,0.47896289]
[1737274545052,0.08178681,104740.0,104730.0,0.31100789]
[1737274545257,0.18102762,104740.0,104730.0,0.31100789]
[1737274545997,0.18102762,104740.0,104730.0,0.31399445]
[1737274546278,0.18102762,104740.0,104730.0,0.29099445]
[1737274546647,0.27650162,104740.0,104730.0,0.10004745]
[1737274547062,0.18102762,104740.0,104730.0,0.10004745]
[1737274548786,0.18102762,104740.0,104730.0,0.00456445]
[1737274548787,0.35390162,104740.0,104730.0,0.00456445]
[1737274549139,0.50170758,104740.0,104730.0,0.00456445]
[1737274549348,0.73349439,104740.0,104730.0,0.00456445]
[1737274549561,0.73349439,104740.0,104730.0,0.00157789]
[1737274550007,0.63538843,104740.0,104730.0,0.00157789]
[1737274550649,0.372583,104730.0,104720.0,0.0234281]
[1737274550850,0.63539743,104730.0,104700.0,0.382448]
[1737274551170,0.08178681,104710.0,104700.0,0.28709701]
[1737274552926,0.08178681,104710.0,104700.0,0.31009701]
[1737274554652,0.09924081,104720.0,104710.0,0.118501]
[1737274555788,0.18102762,104720.0,104710.0,0.118501]
[1737274556828,0.27651962,104720.0,104710.0,0.118501]
[1737274558212,0.27651962,104720.0,104710.0,0.023]
[1737274559169,0.172901,104710.0,104700.0,0.00057801]
[1737274559375,0.35392862,104710.0,104700.0,0.09608801]
[1737274559581,0.35392862,104710.0,104700.0,0.00057801]
[1737274559996,0.40362862,104710.0,104700.0,0.00057801]
[1737274560223,0.40362862,104710.0,104700.0,0.02357801]
[1737274561197,0.40362862,104710.0,104700.0,0.00057801]
[1737274561566,0.32748181,104710.0,104700.0,0.00057801]
[1737274561815,0.40926862,104710.0,104700.0,0.00057801]
[1737274563808,0.17729681,104700.0,104690.0,0.11781098]
[1737274564002,0.27653762,104700.0,104690.0,0.11796077]
[1737274564691,0.27653762,104700.0,104690.0,0.02244077]
[1737274567772,0.19475081,104700.0,104690.0,0.02244077]
[1737274567978,0.09924081,104700.0,104690.0,0.11796077]
[1737274569058,0.19475081,104700.0,104690.0,0.02244077]
[1737274569262,0.09924081,104700.0,104690.0,0.12094868]
[1737274569557,0.09924081,104700.0,104690.0,0.11838897]
[1737274569792,0.09924081,104700.0,104690.0,0.09609799]
[1737274570000,0.19475081,104700.0,104690.0,0.00057799]
[1737274570597,0.27653762,104700.0,104690.0,0.00057799]
[1737274570776,0.27653762,104700.0,104690.0,0.00356583]
[1737274571434,0.44558751,104700.0,104690.0,0.00356583]
[1737274571641,0.35563762,104700.0,104690.0,0.00356583]
[1737274572453,0.40283762,104700.0,104690.0,0.00356583]
[1737274572635,0.40283762,104700.0,104690.0,0.00057799]
[1737274574482,0.48775608,104700.0,104690.0,0.00057799]
[1737274575249,0.63775608,104700.0,104690.0,0.00057799]
[1737274575738,0.64379608,104700.0,104690.0,0.00057799]
[1737274576965,0.63775608,104700.0,104690.0,0.00057799]
[1737274577197,0.64379608,104700.0,104690.0,0.00057799]
[1737274578892,0.62279608,104700.0,104690.0,0.00057799]
[1737274579695,0.53787762,104700.0,104690.0,0.00057799]
[1737274580245,0.48711843,104700.0,104690.0,0.00057799]
[1737274580490,0.25490681,104690.0,104670.0,0.1914912]
[1737274580769,0.18102762,104680.0,104670.0,0.2870222]
[1737274581241,0.18102762,104680.0,104670.0,0.30076881]
[1737274581477,0.22602762,104680.0,104670.0,0.30076881]
[1737274582213,0.22602762,104680.0,104670.0,0.29479202]
[1737274582874,0.22602762,104680.0,104670.0,0.00819802]
[1737274582875,0.48094343,104680.0,104670.0,0.00819802]
[1737274583006,0.86306543,104680.0,104660.0,0.2870672]
[1737274583210,0.08178681,104670.0,104660.0,0.2870672]
[1737274583523,0.27656562,104670.0,104660.0,0.0959742]
[1737274583918,0.35416562,104670.0,104660.0,0.0004282]
[1737274584134,0.35416562,104670.0,104660.0,0.0959752]